[Event "14th Poti Open-A 2019"]
[Site "Poti"]
[Date "2019.07.16"]
[Round "5.23"]
[White "Naqopia, Giorgi"]
[Black "Qaloyan, Ishkhan"]
[Result "1-0"]
[ECO "B50"]
[WhiteElo "1680"]
[BlackElo "1497"]
[Annotator "NA RC"]
[PlyCount "131"]
[EventDate "2019.07.13"]
[EventType "swiss"]
[EventCountry "GEO"]
[SourceTitle "playchess.com"]
[Source "ChessBase"]
[SourceQuality "1"]
[TimeControl "40/5400+30:1800+30"]

1. e4 {[%emt 0:00:00]} c5 {[%emt 0:00:00]} 2. Nf3 {[%emt 0:00:25]} d6 {[%emt 0:00:00]} 3. c4 {[%emt 0:00:04]} e5 {[%emt 0:00:00]} 4. d3 {[%emt 0:00:04]} Nc6 {[%emt 0:00:00]} 5. g3 {[%emt 0:00:05]} g6 {[%emt 0:00:00]} 6. Bg2 {[%emt 0:00:03]} Bg7 {[%emt 0:00:04]} 7. O-O {[%emt 0:00:06]} Nge7 {[%emt 0:00:19]} 8. Nc3 {[%emt 0:03:52]} O-O {[%emt 0:00:18]} 9. Rb1 {[%emt 0:00:01]} f5 {[%emt 0:04:24]} 10. Nd5 {[%emt 0:01:20]} h6 {[%emt 0:13:47]} 11. a3 {[%emt 0:10:27]} a5 {[%emt 0:10:33]} 12. exf5 gxf5 {[%emt 0:00:34]} 13. Nh4 {[%emt 0:25:37]} Nxd5 {[%emt 0:21:27]} 14. Bxd5+ {[%emt 0:01:02]} Kh7 {[%emt 0:00:19]} 15. f4 {[%emt 0:03:21]} Qe8 {[%emt 0:17:35]} 16. Nf3 {[%emt 0:06:35]} Be6 {[%emt 0:09:49]} 17. fxe5 {[%emt 0:16:39]} dxe5 {[%emt 0:05:13]} 18. Qb3 {[%emt 0:05:17]} Rd8 {[%emt 0:07:44]} 19. Be3 {[%emt 0:01:28]} Bxd5 {[%emt 0:02:20]} 20. cxd5 {[%emt 0:00:18]} Nd4 {[%emt 0:00:26]} 21. Bxd4 {[%emt 0:04:27]} cxd4 {[%emt 0:00:33]} 22. Rbe1 {[%emt 0:03:23]} e4 {[%emt 0:02:49]} 23. Qxb7 {[%emt 0:01:35]} Rf7 {[%emt 0:01:37]} 24. Qb3 {[%emt 0:14:00]} Rb8 {[%emt 0:00:17]} 25. Qc4 {[%emt 0:00:52]} Rc8 {[%emt 0:00:08]} 26. Qa6 {[%emt 0:00:56]} Ra8 {[%emt 0:01:24]} 27. Qe6 {[%emt 0:00:12]} Rf6 {[%emt 0:01:18]} 28. Qxe8 {[%emt 0:00:23]} Rxe8 {[%emt 0:00:01]} 29. Nxd4 {[%emt 0:00:11]} Re5 {[%emt 0:00:54]} 30. dxe4 {[%emt 0:01:04]} fxe4 {[%emt 0:00:21]} 31. Ne6 {[%emt 0:00:55]} Rxf1+ {[%emt 0:00:45]} 32. Kxf1 {[%emt 0:00:02]} Rxd5 33. Nxg7 {[%emt 0:00:07]} Kxg7 {[%emt 0:00:33]} 34. Rxe4 {[%emt 0:00:08]} Rd1+ {[%emt 0:00:20]} 35. Kf2 {[%emt 0:01:01]} Rh1 {[%emt 0:00:59]} 36. Kg2 {[%emt 0:00:05]} Rb1 {[%emt 0:00:05]} 37. Re2 {[%emt 0:00:06]} a4 {[%emt 0:00:17]} 38. Kf3 {[%emt 0:00:05]} Kf6 {[%emt 0:00:22]} 39. Ke4 {[%emt 0:00:09]} Rd1 {[%emt 0:00:19]} 40. Rc2 {[%emt 0:00:07]} Rd6 {[%emt 0:00:21]} 41. Ke3 {[%emt 0:30:30]} Rd5 {[%emt 0:30:43]} 42. Rc4 {[%emt 0:00:42]} Ra5 {[%emt 0:00:13]} 43. h4 {[%emt 0:01:13]} h5 {[%emt 0:00:23]} 44. Rb4 {[%emt 0:00:32]} Ke6 {[%emt 0:00:53]} 45. Rb6+ {[%emt 0:00:16]} Kf5 {[%emt 0:00:10]} 46. Rh6 {[%emt 0:00:06]} Kg4 {[%emt 0:00:33]} 47. Rg6+ {[%emt 0:00:38]} Kh3 {[%emt 0:00:10]} 48. Rg5 {[%emt 0:00:51]} Ra6 {[%emt 0:00:20]} 49. Kf4 {[%emt 0:01:54]} Rf6+ {[%emt 0:00:58]} 50. Rf5 {[%emt 0:00:45]} Rb6 {[%emt 0:01:10]} 51. Rxh5 {[%emt 0:00:08]} Rxb2 {[%emt 0:00:06]} 52. Ra5 {[%emt 0:00:08]} Rb3 {[%emt 0:00:48]} 53. Rxa4 {[%emt 0:00:47]} Rxg3 {[%emt 0:00:11]} 54. Kf5 {[%emt 0:00:12]} Rf3+ {[%emt 0:00:19]} 55. Kg6 {[%emt 0:00:27]} Rg3+ {[%emt 0:00:09]} 56. Kh6 {[%emt 0:00:06]} Rb3 {[%emt 0:00:17]} 57. h5 {[%emt 0:00:49]} Rb6+ {[%emt 0:00:05]} 58. Kg7 {[%emt 0:00:58]} Rb7+ {[%emt 0:00:01]} 59. Kf6 Rb6+ 60. Ke7 {[%emt 0:00:17]} Rh6 {[%emt 0:00:18]} 61. Ra5 {[%emt 0:00:14]} Kg4 {[%emt 0:00:15]} 62. a4 {[%emt 0:00:22]} Kf4 {[%emt 0:00:04]} 63. Kf7 {[%emt 0:00:09]} Rb6 {[%emt 0:00:18]} 64. Rb5 {[%emt 0:01:22]} Ra6 {[%emt 0:00:09]} 65. a5 {[%emt 0:00:02]} Ra7+ {[%emt 0:00:04]} 66. Ke6 1-0

[Event "14th Poti Open-A 2019"]
[Site "Poti"]
[Date "2019.07.16"]
[Round "5.24"]
[White "Petrosyan, Tigran Sur."]
[Black "Mikayelyan, Mikael"]
[Result "1/2-1/2"]
[ECO "D02"]
[WhiteElo "1554"]
[BlackElo "1736"]
[Annotator "NA RC"]
[PlyCount "65"]
[EventDate "2019.07.13"]
[EventType "swiss"]
[EventCountry "GEO"]
[SourceTitle "playchess.com"]
[Source "ChessBase"]
[SourceQuality "1"]
[TimeControl "40/5400+30:1800+30"]

1. d4 {[%emt 0:00:00]} d5 {[%emt 0:00:00]} 2. Nf3 {[%emt 0:00:00]} Nf6 {[%emt 0:00:00]} 3. Bf4 {[%emt 0:00:00]} c6 {[%emt 0:00:51]} 4. e3 {[%emt 0:00:48]} Bf5 {[%emt 0:00:19]} 5. Bd3 {[%emt 0:00:17]} Bg6 {[%emt 0:00:38]} 6. O-O {[%emt 0:00:16]} e6 {[%emt 0:00:03]} 7. Qe2 {[%emt 0:01:39]} Nbd7 {[%emt 0:00:27]} 8. Nbd2 {[%emt 0:00:19]} Be7 {[%emt 0:00:16]} 9. h3 {[%emt 0:00:21]} O-O {[%emt 0:00:36]} 10. c4 {[%emt 0:00:52]} c5 {[%emt 0:01:45]} 11. Bxg6 hxg6 {[%emt 0:00:13]} 12. b3 {[%emt 0:07:43]} Rc8 {[%emt 0:03:08]} 13. Rac1 {[%emt 0:01:00]} cxd4 {[%emt 0:00:55]} 14. exd4 {[%emt 0:00:21]} Qa5 {[%emt 0:02:06]} 15. Rc2 {[%emt 0:03:43]} dxc4 {[%emt 0:02:29]} 16. Nxc4 {[%emt 0:05:25]} Qf5 {[%emt 0:00:56]} 17. Bh2 {[%emt 0:04:45]} b5 {[%emt 0:01:42]} 18. Ne3 {[%emt 0:01:10]} Rxc2 {[%emt 0:00:11]} 19. Nxc2 {[%emt 0:00:31]} Qd5 {[%emt 0:01:02]} 20. Ne3 {[%emt 0:01:11]} Qc6 {[%emt 0:00:54]} 21. Rd1 {[%emt 0:02:10]} Rc8 {[%emt 0:01:39]} 22. d5 exd5 {[%emt 0:00:17]} 23. Nd4 {[%emt 0:08:03]} Qc5 {[%emt 0:01:00]} 24. Qxb5 {[%emt 0:02:23]} Nb6 {[%emt 0:02:09]} 25. Qxc5 {[%emt 0:07:37]} Bxc5 {[%emt 0:00:10]} 26. Ndc2 {[%emt 0:00:44]} Ne4 {[%emt 0:04:17]} 27. Be5 {[%emt 0:01:01]} f6 {[%emt 0:03:47]} 28. Bd4 {[%emt 0:00:59]} Bxd4 {[%emt 0:00:25]} 29. Nxd4 {[%emt 0:00:59]} Nc3 {[%emt 0:01:12]} 30. Rd2 {[%emt 0:02:57]} Ne4 {[%emt 0:03:04]} 31. Rd1 {[%emt 0:00:47]} Nc3 {[%emt 0:01:30]} 32. Rd2 {[%emt 0:00:07]} Ne4 {[%emt 0:00:06]} 33. Rd1 {[%emt 0:00:12]} 1/2-1/2

[Event "14th Poti Open-A 2019"]
[Site "Poti"]
[Date "2019.07.17"]
[Round "6.17"]
[White "Qalichava, Akaki"]
[Black "Manukyan, Aleks"]
[Result "1/2-1/2"]
[ECO "C04"]
[WhiteElo "1808"]
[BlackElo "2097"]
[Annotator "NA"]
[PlyCount "30"]
[EventDate "2019.07.13"]
[EventType "swiss"]
[EventCountry "GEO"]
[SourceTitle "playchess.com"]
[Source "ChessBase"]
[SourceQuality "1"]
[TimeControl "40/5400+30:1800+30"]

1. e4 {[%emt 0:00:00]} e6 {[%emt 0:00:00]} 2. d4 {[%emt 0:00:00]} d5 {[%emt 0:00:00]} 3. Nd2 {[%emt 0:00:00]} Nc6 {[%emt 0:00:26]} 4. Ngf3 {[%emt 0:00:00]} Nf6 {[%emt 0:00:33]} 5. e5 {[%emt 0:00:00]} Nd7 {[%emt 0:00:07]} 6. c3 {[%emt 0:00:00]} f6 {[%emt 0:00:10]} 7. exf6 {[%emt 0:00:04]} Qxf6 {[%emt 0:00:10]} 8. Bb5 {[%emt 0:00:10]} Bd6 {[%emt 0:00:43]} 9. O-O {[%emt 0:00:12]} O-O {[%emt 0:00:21]} 10. Re1 {[%emt 0:00:30]} a6 {[%emt 0:01:25]} 11. Bxc6 {[%emt 0:00:08]} bxc6 {[%emt 0:00:01]} 12. Qe2 {[%emt 0:00:13]} Nb6 {[%emt 0:07:26]} 13. Nf1 {[%emt 0:11:25]} a5 $11 {[%emt 0:03:03]} 14. Bg5 {[%emt 0:02:26]} Qg6 {[%emt 0:01:48]} 15. Bh4 {[%emt 0:00:53]} a4 {[%emt 0:02:12]} 1/2-1/2

[Event "14th Poti Open-A 2019"]
[Site "Poti"]
[Date "2019.07.17"]
[Round "6.18"]
[White "Pluzyan, Aram"]
[Black "Mindiashvili, Tengiz"]
[Result "0-1"]
[ECO "E32"]
[WhiteElo "2087"]
[BlackElo "1862"]
[Annotator "NA"]
[PlyCount "71"]
[EventDate "2019.07.13"]
[EventType "swiss"]
[EventCountry "GEO"]
[SourceTitle "playchess.com"]
[Source "ChessBase"]
[SourceQuality "1"]
[TimeControl "40/5400+30:1800+30"]

1. d4 {[%emt 0:00:00]} Nf6 {[%emt 0:00:00]} 2. c4 {[%emt 0:00:00]} e6 {[%emt 0:00:13]} 3. Nc3 {[%emt 0:02:46]} Bb4 {[%emt 0:00:24]} 4. Qc2 {[%emt 0:03:33]} O-O {[%emt 0:00:20]} 5. e4 {[%emt 0:02:41]} Bxc3+ {[%emt 0:01:09]} 6. bxc3 {[%emt 0:00:05]} d6 {[%emt 0:00:12] E32: Nimzo-Indian: Classical (4 Qc2): 4...0-0} 7. Bg5 {[%emt 0:07:58]} (7. Bd3 Nbd7 8. f4 e5 9. Nf3 Re8 10. O-O h6 11. c5 exd4 12. cxd6 cxd6 13. cxd4 Nb6 14. e5 {1-0 (41) Bromberger,S (2500)-Braun,A (2567) Austria 2014}) 7... h6 {[%emt 0:04:51]} 8. Bh4 {[%emt 0:00:25]} e5 {[%emt 0:00:11]} 9. Bd3 {[%emt 0:01:04]} Re8 $146 {[%emt 0:01:12]} ({Predecessor:} 9... Bg4 10. h3 Bh5 11. g4 Bg6 12. Rb1 b6 13. Ne2 Bh7 14. g5 {1-0 (44) Henkel,P (1817)-Tortoza,C (1656) Remote email 2013}) 10. Ne2 {[%emt 0:02:06]} Nbd7 {[%emt 0:01:35]} 11. f3 {[%emt 0:03:02]} Nf8 {[%emt 0:02:17]} 12. d5 {[%emt 0:03:51]} Ng6 {[%emt 0:01:36]} 13. Bf2 {[%emt 0:00:31]} b6 {[%emt 0:02:41]} 14. g4 {[%emt 0:02:50]} Nd7 {[%emt 0:03:43]} 15. h4 {[%emt 0:11:48]} Nc5 {[%emt 0:08:18]} 16. Kd2 {[%emt 0:09:35]} c6 {[%emt 0:03:56]} 17. Rag1 {[%emt 0:02:35]} Nxd3 {[%emt 0:04:49]} 18. Qxd3 {[%emt 0:02:52] [#]} b5 $1 {[%emt 0:05:09]} 19. cxb5 {[%emt 0:05:52]} cxd5 {[%emt 0:00:23]} 20. h5 {[%emt 0:05:04]} dxe4 {[%emt 0:02:17]} 21. Qxe4 {[%emt 0:08:23]} d5 {[%emt 0:01:07]} 22. Qb4 {[%emt 0:00:44]} a5 {[%emt 0:09:00]} 23. Qb1 {[%emt 0:04:42]} Nf4 {[%emt 0:01:37]} 24. Nxf4 {[%emt 0:02:46]} Qg5 {[%emt 0:01:26]} 25. Be3 {[%emt 0:01:48]} d4 {[%emt 0:00:24]} 26. Qe4 $19 {[%emt 0:05:58]} dxe3+ {[%emt 0:00:43]} 27. Ke2 {[%emt 0:00:07]} Qxf4 {[%emt 0:12:46]} 28. Qxa8 {[%emt 0:00:04]} e4 {[%emt 0:00:09]} 29. Rf1 {[%emt 0:09:16]} Bd7 {[%emt 0:00:38]} 30. Qd5 {[%emt 0:01:07]} exf3+ {[%emt 0:00:35]} 31. Rxf3 {[%emt 0:00:16]} Bxg4 {[%emt 0:00:20]} 32. Rhf1 {[%emt 0:01:09]} Qh2+ {[%emt 0:00:48]} 33. Ke1 {[%emt 0:00:06]} Bxf3 {[%emt 0:01:25]} 34. Rxf3 {[%emt 0:00:01]} Qh4+ {[%emt 0:00:32]} 35. Ke2 {[%emt 0:00:10]} Qh2+ {[%emt 0:00:19]} 36. Ke1 {[%emt 0:00:00]} 0-1

[Event "14th Poti Open-A 2019"]
[Site "Poti"]
[Date "2019.07.17"]
[Round "6.19"]
[White "Virabyan, Gor"]
[Black "Kukhaleishvili, Giorgi"]
[Result "1-0"]
[ECO "E81"]
[WhiteElo "2048"]
[BlackElo "1839"]
[Annotator "NA"]
[PlyCount "93"]
[EventDate "2019.07.13"]
[EventType "swiss"]
[EventCountry "GEO"]
[SourceTitle "playchess.com"]
[Source "ChessBase"]
[SourceQuality "1"]
[TimeControl "40/5400+30:1800+30"]

1. d4 Nf6 2. c4 g6 3. Nc3 Bg7 4. e4 d6 5. f3 O-O 6. Bg5 c5 7. d5 a6 8. a4 e6 9. Qd2 Qa5 10. h4 {E81: King's Indian: Sämisch: 6th move deviations (including 6 Be3 c6)} (10. Ra3 exd5 11. cxd5 Nbd7 12. Nh3 Ne5 13. Nf2 Bd7 14. Be2 Qb4 15. O-O b5 16. axb5 axb5 17. Nxb5 Bxb5 18. Qxb4 cxb4 19. Rxa8 Bxe2 20. Rxf8+ Kxf8 21. Ra1 {0-1 (35) Ibrahim,H (2337)-Vovk,Y (2595) Beirut 2016}) 10... exd5 11. cxd5 h5 $146 ({Predecessor:} 11... b5 12. h5 Nxh5 13. Be7 Re8 14. Bxd6 f5 15. Bd3 c4 16. Bc2 Qb6 17. Bh2 b4 18. Nd1 fxe4 19. fxe4 Bf5 20. Ne2 Bxe4 21. Bxe4 Rxe4 22. d6 Qc5 23. d7 Nxd7 {0-1 (23) Olsson,L (2415)-Cutillas Ripoll,P (2465) ICCF corr 1994}) 12. Bf4 Rd8 13. Ra3 Qc7 14. Be2 Nbd7 15. Nh3 Ne5 16. Nf2 Bd7 17. O-O Re8 18. Bh6 c4 19. Bxg7 Kxg7 20. Rc1 b5 21. b4 Qb6 22. a5 Qd8 23. Ncd1 Nh7 24. Qf4 Rc8 ({Black should play} 24... f5 $15) 25. Ne3 Qf6 26. Qg3 $11 Rc7 27. Rac3 Bc8 28. f4 Ng4 29. Bxg4 hxg4 30. Nexg4 Bxg4 31. Qxg4 Rce7 32. e5 dxe5 33. Ne4 Qxf4 34. Qxf4 exf4 35. Nc5 Nf6 36. d6 Ra7 37. Rd1 Nd7 38. Rf3 Rc8 39. Rxf4 Rxc5 40. bxc5 Nxc5 41. Rd5 Nd7 42. h5 c3 43. Rd3 gxh5 44. Rxc3 Ne5 45. Rc7 Ra8 46. Rf5 Re8 47. d7 1-0

[Event "14th Poti Open-A 2019"]
[Site "Poti"]
[Date "2019.07.17"]
[Round "6.20"]
[White "Manukyan, Sevak N."]
[Black "Licheli, Luka"]
[Result "0-1"]
[ECO "E42"]
[WhiteElo "1830"]
[BlackElo "2046"]
[Annotator "NA"]
[PlyCount "44"]
[EventDate "2019.07.13"]
[EventType "swiss"]
[EventCountry "GEO"]
[SourceTitle "playchess.com"]
[Source "ChessBase"]
[SourceQuality "1"]
[TimeControl "40/5400+30:1800+30"]

1. d4 {[%emt 0:17:57]} Nf6 {[%emt 0:00:00]} 2. c4 {[%emt 0:00:04]} e6 {[%emt 0:00:00]} 3. Nc3 {[%emt 0:00:04]} Bb4 {[%emt 0:00:00]} 4. e3 {[%emt 0:00:05]} c5 {[%emt 0:00:12]} 5. Nge2 {[%emt 0:00:04]} cxd4 {[%emt 0:01:19]} 6. exd4 {[%emt 0:00:21]} d5 {[%emt 0:02:07]} 7. a3 {[%emt 0:01:07]} Be7 {[%emt 0:02:34]} 8. Nf4 {[%emt 0:00:23]} Nc6 {[%emt 0:19:31]} 9. cxd5 {[%emt 0:01:02]} Nxd5 {[%emt 0:00:06]} 10. Ncxd5 {[%emt 0:03:04]} exd5 {[%emt 0:01:16]} 11. Be3 {[%emt 0:03:44]} Bg5 {[%emt 0:06:59]} 12. Qd2 {[%emt 0:19:14]} O-O {[%emt 0:17:49]} 13. Be2 {[%emt 0:18:08]} Re8 {[%emt 0:05:54]} 14. O-O {[%emt 0:07:46]} Bxf4 {[%emt 0:09:50]} 15. Bxf4 {[%emt 0:00:10]} Nxd4 {[%emt 0:02:09]} 16. Qxd4 {[%emt 0:00:21]} Rxe2 {[%emt 0:00:02]} 17. Rfe1 {[%emt 0:03:03]} Rxe1+ {[%emt 0:03:17]} 18. Rxe1 $11 {[%emt 0:01:05]} Be6 {[%emt 0:00:03]} 19. Be5 {[%emt 0:01:49]} Qf8 {[%emt 0:12:54]} 20. Re3 {[%emt 0:00:39]} Kh8 {[%emt 0:04:43]} 21. h4 {[%emt 0:01:12]} h6 {[%emt 0:05:30]} 22. h5 {[%emt 0:02:04]} b6 {[%emt 0:01:59]} 0-1

[Event "14th Poti Open-A 2019"]
[Site "Poti"]
[Date "2019.07.17"]
[Round "6.21"]
[White "Bechvaia, Gabriel"]
[Black "Naqopia, Giorgi"]
[Result "1/2-1/2"]
[ECO "A51"]
[WhiteElo "1793"]
[BlackElo "1680"]
[Annotator "NA"]
[PlyCount "39"]
[EventDate "2019.07.13"]
[EventType "swiss"]
[EventCountry "GEO"]
[SourceTitle "playchess.com"]
[Source "ChessBase"]
[SourceQuality "1"]
[TimeControl "40/5400+30:1800+30"]

1. d4 {[%emt 0:00:00]} Nf6 {[%emt 0:00:00]} 2. c4 {[%emt 0:00:00]} e5 {[%emt 0:00:00]} 3. d5 {[%emt 0:04:38]} d6 {[%emt 0:04:15]} 4. Qc2 {[%emt 0:03:20]} e4 {[%emt 0:02:46]} 5. Bg5 {[%emt 0:04:17]} Bf5 {[%emt 0:00:36]} 6. Nc3 {[%emt 0:10:18]} Nbd7 {[%emt 0:00:22]} 7. Nf3 {[%emt 0:06:04]} Bg6 {[%emt 0:01:11]} 8. Nh4 {[%emt 0:01:22]} e3 {[%emt 0:00:39]} 9. Nxg6 {[%emt 0:12:23]} exf2+ {[%emt 0:00:10]} 10. Kd2 {[%emt 0:00:14]} fxg6 {[%emt 0:03:31]} 11. Rd1 {[%emt 0:01:46]} Be7 {[%emt 0:00:03]} 12. Bxf6 {[%emt 0:02:10]} Bxf6 {[%emt 0:00:50]} 13. Kc1 {[%emt 0:00:09]} Bxc3 {[%emt 0:00:23]} 14. Qxc3 {[%emt 0:00:34]} O-O {[%emt 0:00:06]} 15. g3 {[%emt 0:03:33]} Qe7 {[%emt 0:02:54]} 16. Qc2 {[%emt 0:09:42]} Qe3+ {[%emt 0:02:04]} 17. Kb1 {[%emt 0:00:28]} a5 {[%emt 0:00:33]} 18. Bh3 {[%emt 0:01:55]} Nc5 {[%emt 0:01:32]} 19. Bg4 {[%emt 0:01:14]} Rae8 {[%emt 0:02:17]} 20. Rhf1 {[%emt 0:01:16]} 1/2-1/2

[Event "14th Poti Open-A 2019"]
[Site "Poti"]
[Date "2019.07.17"]
[Round "6.22"]
[White "Mchedlishvili, Ramaz"]
[Black "Khukhunaishvili, Tariel"]
[Result "1-0"]
[ECO "A01"]
[WhiteElo "1441"]
[BlackElo "1722"]
[Annotator "NA"]
[PlyCount "90"]
[EventDate "2019.07.13"]
[EventType "swiss"]
[EventCountry "GEO"]
[SourceTitle "playchess.com"]
[Source "ChessBase"]
[SourceQuality "1"]
[TimeControl "40/5400+30:1800+30"]

1. b3 {[%emt 0:00:00]} Nf6 {[%emt 0:00:00]} 2. Bb2 {[%emt 0:00:00]} g6 {[%emt 0:00:00]} 3. Bxf6 {[%emt 0:00:00]} exf6 {[%emt 0:00:00]} 4. c4 {[%emt 0:00:04]} Bg7 {[%emt 0:00:00]} 5. Nc3 {[%emt 0:00:04]} O-O {[%emt 0:00:23]} 6. g3 {[%emt 0:00:20]} d6 {[%emt 0:02:56]} 7. Bg2 {[%emt 0:00:13]} f5 {[%emt 0:02:04]} 8. Rc1 {[%emt 0:01:44]} Nc6 {[%emt 0:00:25]} 9. e3 {[%emt 0:04:38]} Re8 {[%emt 0:00:32]} 10. Nge2 {[%emt 0:00:54]} Ne5 {[%emt 0:03:34]} 11. d4 {[%emt 0:00:37]} Ng4 {[%emt 0:00:14]} 12. O-O {[%emt 0:01:33]} c6 {[%emt 0:02:17]} 13. b4 {[%emt 0:06:56]} a6 {[%emt 0:04:11]} 14. Qb3 {[%emt 0:05:03]} Nf6 {[%emt 0:03:36]} 15. b5 {[%emt 0:10:34]} Ne4 {[%emt 0:02:14]} 16. Qc2 {[%emt 0:04:41]} axb5 {[%emt 0:10:56]} 17. cxb5 {[%emt 0:10:23]} Nxc3 {[%emt 0:06:27]} 18. Nxc3 {[%emt 0:00:20]} d5 {[%emt 0:00:52]} 19. a4 {[%emt 0:05:36]} Bf8 {[%emt 0:02:20]} 20. Qb3 {[%emt 0:03:44]} Qa5 {[%emt 0:03:33]} 21. Rb1 {[%emt 0:01:44]} Be6 {[%emt 0:03:35]} 22. Rfc1 {[%emt 0:01:40]} Bd6 {[%emt 0:05:41]} 23. bxc6 {[%emt 0:07:59]} bxc6 {[%emt 0:00:20]} 24. Qb6 {[%emt 0:00:37]} Ba3 {[%emt 0:09:49]} 25. Qxa5 {[%emt 0:00:37]} Rxa5 {[%emt 0:00:02]} 26. Rc2 {[%emt 0:01:29]} Rea8 {[%emt 0:04:44]} 27. h4 {[%emt 0:02:45]} Be7 {[%emt 0:01:22]} 28. Rb7 {[%emt 0:01:26]} Kf8 {[%emt 0:01:16]} 29. Rcb2 {[%emt 0:03:40]} Ke8 {[%emt 0:02:16]} 30. Bf1 {[%emt 0:01:13]} Kd8 {[%emt 0:01:38]} 31. Bd3 {[%emt 0:01:18]} R5a7 {[%emt 0:01:26]} 32. R7b6 {[%emt 0:01:18]} Bd7 {[%emt 0:01:03]} 33. Bc2 Ba3 {[%emt 0:01:23]} 34. Rb1 {[%emt 0:01:56]} Kc8 {[%emt 0:00:41]} 35. Ne2 {[%emt 0:02:32]} Bd6 {[%emt 0:00:32]} 36. Nf4 {[%emt 0:00:28]} Bc7 {[%emt 0:00:28]} 37. R6b2 {[%emt 0:00:25]} Rb8 {[%emt 0:00:20]} 38. Rxb8+ {[%emt 0:01:25]} Bxb8 {[%emt 0:00:01]} 39. Nd3 {[%emt 0:00:10]} Bd6 {[%emt 0:00:25]} 40. Kf1 {[%emt 0:01:01]} Kc7 {[%emt 0:01:54]} 41. Ke2 {[%emt 0:30:28]} Bc8 {[%emt 0:30:23]} 42. Kd2 {[%emt 0:01:03]} Ba6 {[%emt 0:00:23]} 43. Nc5 {[%emt 0:02:05]} Bxc5 44. dxc5 {[%emt 0:00:01]} Ra8 {[%emt 0:05:20]} 45. Kc3 {[%emt 0:00:31]} Be2 {[%emt 0:00:30]} 1-0

[Event "14th Poti Open-A 2019"]
[Site "Poti"]
[Date "2019.07.17"]
[Round "6.23"]
[White "Nurijanyan, Alex"]
[Black "Kvartskhava, Tsotne"]
[Result "1-0"]
[ECO "C00"]
[WhiteElo "1610"]
[BlackElo "1719"]
[Annotator "NA"]
[PlyCount "21"]
[EventDate "2019.07.13"]
[EventType "swiss"]
[EventCountry "GEO"]
[SourceTitle "playchess.com"]
[Source "ChessBase"]
[SourceQuality "1"]
[TimeControl "40/5400+30:1800+30"]

1. e4 {[%emt 0:00:00]} e6 {[%emt 0:00:00]} 2. d4 {[%emt 0:00:00]} d5 {[%emt 0:00:00]} 3. Bd3 {[%emt 0:00:00]} c5 {[%emt 0:00:08]} 4. exd5 {[%emt 0:00:00]} exd5 {[%emt 0:00:07]} 5. Qe2+ {[%emt 0:01:12]} Be6 {[%emt 0:02:45]} 6. dxc5 {[%emt 0:00:31]} Bxc5 {[%emt 0:01:17]} 7. Nc3 {[%emt 0:00:06]} Nc6 {[%emt 0:04:58]} 8. Nf3 {[%emt 0:00:05]} Qd7 {[%emt 0:06:49]} 9. O-O {[%emt 0:00:59]} Nf6 {[%emt 0:05:51]} 10. Bg5 {[%emt 0:01:14]} Be7 {[%emt 0:02:13]} 11. Rad1 {[%emt 0:00:49]} 1-0

[Event "14th Poti Open-A 2019"]
[Site "Poti"]
[Date "2019.07.17"]
[Round "6.24"]
[White "Mikayelyan, Mikael"]
[Black "Kupatadze, Tornike"]
[Result "1-0"]
[ECO "A42"]
[WhiteElo "1736"]
[BlackElo "1526"]
[Annotator "NA"]
[PlyCount "24"]
[EventDate "2019.07.13"]
[EventType "swiss"]
[EventCountry "GEO"]
[SourceTitle "playchess.com"]
[Source "ChessBase"]
[SourceQuality "1"]
[TimeControl "40/5400+30:1800+30"]

1. d4 {[%emt 0:00:00]} g6 {[%emt 0:00:00]} 2. c4 {[%emt 0:00:00]} Bg7 {[%emt 0:00:00]} 3. Nc3 {[%emt 0:00:00]} d6 {[%emt 0:00:00]} 4. e4 {[%emt 0:00:02]} Nc6 {[%emt 0:00:00]} 5. Be3 {[%emt 0:00:17]} e5 {[%emt 0:00:00]} 6. Nge2 {[%emt 0:01:08]} f5 {[%emt 0:00:19]} 7. f3 {[%emt 0:03:09]} fxe4 {[%emt 0:01:20]} 8. Nxe4 {[%emt 0:01:57]} Bf5 {[%emt 0:01:39]} 9. N4g3 {[%emt 0:05:42]} Nh6 {[%emt 0:04:07]} 10. Qd2 {[%emt 0:02:42]} Nf7 {[%emt 0:00:42]} 11. d5 {[%emt 0:00:25]} Ne7 {[%emt 0:00:35]} 12. Nc3 {[%emt 0:00:17]} c6 {[%emt 0:02:11]} 1-0

[Event "14th Poti Open-A 2019"]
[Site "Poti"]
[Date "2019.07.18"]
[Round "7.4"]
[White "Nigalidze, Gaioz"]
[Black "Mustafayev, Farid"]
[Result "1-0"]
[ECO "A05"]
[WhiteElo "2563"]
[BlackElo "2289"]
[Annotator "ChessBase"]
[PlyCount "61"]
[EventDate "2019.07.13"]
[EventType "swiss"]
[EventCountry "GEO"]
[SourceTitle "playchess.com"]
[Source "ChessBase"]
[SourceQuality "1"]
[TimeControl "40/5400+30:1800+30"]

1. Nf3 {[%emt 0:00:00]} Nf6 {[%emt 0:00:00]} 2. c4 {[%emt 0:00:08]} c5 {[%emt 0:00:18]} 3. Nc3 {[%emt 0:00:00]} d6 {[%emt 0:00:33]} 4. g3 {[%emt 0:00:11]} Nc6 {[%emt 0:01:59]} 5. Bg2 {[%emt 0:00:05]} e5 {[%emt 0:00:39]} 6. O-O {[%emt 0:00:08]} g6 {[%emt 0:00:03]} 7. a3 {[%emt 0:01:10]} a5 {[%emt 0:03:04]} 8. Ne1 {[%emt 0:02:46]} Bg7 {[%emt 0:00:20]} 9. Nc2 {[%emt 0:00:06]} O-O {[%emt 0:00:24]} 10. d3 {[%emt 0:02:09]} Be6 {[%emt 0:01:49]} 11. Bg5 {[%emt 0:00:36]} h6 {[%emt 0:01:41]} 12. Bxf6 {[%emt 0:00:41]} Bxf6 {[%emt 0:00:06]} 13. Rb1 {[%emt 0:00:27]} Rb8 {[%emt 0:18:00]} 14. b4 {[%emt 0:03:35]} cxb4 {[%emt 0:00:06]} 15. axb4 {[%emt 0:00:04]} Bg7 {[%emt 0:00:43]} 16. bxa5 {[%emt 0:13:58]} Nxa5 {[%emt 0:03:10]} 17. Ne3 {[%emt 0:03:15]} f5 {[%emt 0:05:09]} 18. Bd5 {[%emt 0:22:10]} Bxd5 {[%emt 0:02:50]} 19. Nexd5 {[%emt 0:04:12]} Nc6 {[%emt 0:04:26]} 20. e3 {[%emt 0:09:15]} g5 {[%emt 0:07:20]} 21. Qh5 {[%emt 0:04:42]} Kh7 {[%emt 0:04:35]} 22. Rb6 {[%emt 0:02:26]} e4 {[%emt 0:01:20]} 23. d4 {[%emt 0:00:40]} Na5 {[%emt 0:00:20]} 24. Rb4 {[%emt 0:03:03]} Rc8 {[%emt 0:01:59]} 25. Qe2 {[%emt 0:01:59]} Nc6 {[%emt 0:02:01]} 26. Rxb7 {[%emt 0:00:36]} Na5 {[%emt 0:00:04]} 27. Rb4 {[%emt 0:00:37]} Nc6 {[%emt 0:00:45]} 28. Ra4 {[%emt 0:00:51]} f4 {[%emt 0:00:43]} 29. Qc2 {[%emt 0:04:30]} f3 {[%emt 0:00:06]} 30. h3 {[%emt 0:00:42]} Kh8 {[%emt 0:00:16]} 31. Qxe4 {[%emt 0:01:22]} 1-0